fUST/lending_fUST_20240525
["ID","MTS","AMOUNT","RATE_DAILY","PERIOD"]
[327886111,1716580247339,-793.54,0.00027397,12]
[327886112,1716580247348,-500.0,0.00027397,12]
[327886114,1716580247358,-500.0,0.00027397,12]
[327886116,1716580247368,-500.0,0.00027397,12]
[327886118,1716580247377,-500.0,0.00027397,12]
[327886120,1716580247386,-500.0,0.00027397,12]
[327886122,1716580247396,-956.4,0.00027397,12]
[327886125,1716580247405,-500.0,0.00027397,12]
[327886127,1716580247415,-500.0,0.00027397,12]
[327886129,1716580247425,-2731.07,0.00027397,12]
[327886131,1716580247435,-500.0,0.00027397,12]
[327886133,1716580247444,-311.46538699,0.00027397,12]
[327886135,1716580247455,-500.0,0.00027397,12]
[327886137,1716580247464,-500.0,0.00027397,12]
[327886139,1716580247474,-901.85,0.00027397,12]
[327886141,1716580247484,-211.75,0.00027397,12]
[327886143,1716580247493,-207.15,0.00027397,12]
[327886145,1716580247502,-2893.21,0.00027397,12]
[327886147,1716580247511,-500.0,0.00027397,12]
[327886149,1716580247520,-500.0,0.00027397,12]
[327886151,1716580247529,-500.0,0.00027397,12]
[327886153,1716580247538,-400.0,0.00027397,7]
[327886155,1716580247550,-891.83346668,0.00027433,2]
[327886157,1716580247560,-500.0,0.00027671,13]
[327886159,1716580247569,-500.0,0.00027671,13]
[327886161,1716580247578,-225.05,0.00027671,13]
[327886163,1716580247587,-500.0,0.00027671,13]
[327886165,1716580247596,-500.0,0.00027671,13]
[327886167,1716580247605,-500.0,0.00027671,13]
[327886169,1716580247614,-1358.85,0.00027671,13]
[327886171,1716580247623,-500.0,0.00027671,13]
[327886173,1716580247633,-2039.5,0.00027671,13]
[327886175,1716580247643,-500.0,0.00027671,13]
[327886177,1716580247652,-593.03,0.00027671,13]
[327886179,1716580247661,-793.54,0.00027671,13]
[327886181,1716580247670,-500.0,0.00027671,13]
[327886183,1716580247679,-500.0,0.00027671,13]
[327886185,1716580247688,-500.0,0.00027671,13]
[327886187,1716580247697,-500.0,0.00027671,13]
[327886189,1716580247706,-339.4,0.00027671,13]
[327886191,1716580247716,-956.4,0.00027671,13]
[327886193,1716580247725,-500.0,0.00027671,13]
[327886195,1716580247735,-500.0,0.00027671,13]
[327886197,1716580247744,-2731.07,0.00027671,13]
[327886199,1716580247754,-500.0,0.00027671,13]
[327886201,1716580247764,-500.0,0.00027671,13]
[327886203,1716580247774,-406.39,0.00027671,13]
[327886205,1716580247784,-901.85,0.00027671,13]
[327886207,1716580247795,-2893.21,0.00027671,13]
[327886209,1716580247809,-500.0,0.00027671,13]
[327886211,1716580247819,-257.07094965,0.00027671,13]
[327886213,1716580247828,-500.0,0.00027671,13]
[327886215,1716580247838,-172.0,0.00027671,2]
[327886217,1716580247849,-3640.27072653,0.000278,2]
[327886219,1716580247859,-202.176253,0.00027817,2]
[327886221,1716580247868,-150.0,0.000279,2]
[327886223,1716580247879,-4393.42,0.00027944,18]
[327886225,1716580247888,-4856.55,0.00027944,3]
[327886227,1716580247898,-500.0,0.00027945,14]
[327886229,1716580247908,-500.0,0.00027945,14]
[327886231,1716580247917,-500.0,0.00027945,14]
[327886233,1716580247927,-500.0,0.00027945,14]
[327886235,1716580247936,-500.0,0.00027945,14]
[327886237,1716580247945,-1358.85,0.00027945,14]
[327886239,1716580247955,-500.0,0.00027945,14]
[327886241,1716580247965,-2039.5,0.00027945,14]
[327886243,1716580247974,-500.0,0.00027945,14]
[327886245,1716580247984,-593.03,0.00027945,14]
[327886247,1716580247994,-793.54,0.00027945,14]
[327886249,1716580248003,-500.0,0.00027945,14]
[327886251,1716580248013,-500.0,0.00027945,14]
[327886253,1716580248022,-500.0,0.00027945,14]
[327886255,1716580248031,-500.0,0.00027945,14]
[327886257,1716580248040,-956.4,0.00027945,14]
[327886259,1716580248051,-459.82,0.00027945,14]
[327886261,1716580248061,-500.0,0.00027945,14]
[327886263,1716580248070,-2731.07,0.00027945,14]
[327886265,1716580248079,-500.0,0.00027945,14]
[327886267,1716580248089,-500.0,0.00027945,14]
[327886269,1716580248098,-901.85,0.00027945,14]
[327886271,1716580248108,-2893.21,0.00027945,14]
[327886273,1716580248117,-500.0,0.00027945,14]
[327886275,1716580248127,-500.0,0.00027945,14]
[327886277,1716580248137,-221.76141425,0.00028,2]
[327886279,1716580248146,-500.0,0.00028219,15]
[327886281,1716580248156,-500.0,0.00028219,15]
[327886283,1716580248166,-390.77787271,0.00028219,15]
[327886285,1716580248176,-500.0,0.00028219,15]
[327886287,1716580248186,-500.0,0.00028219,15]
[327886289,1716580248195,-1358.85,0.00028219,15]
[327886291,1716580248205,-500.0,0.00028219,15]
[327886293,1716580248215,-2039.5,0.00028219,15]
[327886295,1716580248225,-500.0,0.00028219,15]
[327886297,1716580248235,-593.03,0.00028219,15]
[327886299,1716580248245,-793.54,0.00028219,15]
[327886301,1716580248256,-500.0,0.00028219,15]
[327886303,1716580248266,-500.0,0.00028219,15]
[327886305,1716580248275,-500.0,0.00028219,15]
[327886307,1716580248285,-500.0,0.00028219,15]
[327886309,1716580248295,-956.4,0.00028219,15]
[327886311,1716580248305,-500.0,0.00028219,15]
[327886312,1716580248314,-2731.07,0.00028219,15]
[327886313,1716580248324,-500.0,0.00028219,15]
[327886314,1716580248334,-500.0,0.00028219,15]
[327886315,1716580248343,-901.85,0.00028219,15]
[327886316,1716580248353,-2893.21,0.00028219,15]
[327886317,1716580248363,-264.2,0.00028219,15]
[327886318,1716580248374,-266.99,0.00028219,15]
[327886319,1716580248384,-417.57091557,0.0002839,2]
[327886320,1716580248393,-4226.56801723,0.00028471,2]
[327886321,1716580248403,-500.0,0.00028493,16]
[327886322,1716580248412,-500.0,0.00028493,16]
[327886323,1716580248422,-1358.85,0.00028493,16]
[327886324,1716580248431,-2039.5,0.00028493,16]
[327886325,1716580248441,-500.0,0.00028493,16]
[327886326,1716580248451,-593.03,0.00028493,16]
[327886327,1716580248460,-793.54,0.00028493,16]
[327886328,1716580248469,-500.0,0.00028493,16]
[327886330,1716580248479,-500.0,0.00028493,16]
[327886332,1716580248489,-500.0,0.00028493,16]
[327886334,1716580248498,-464.19,0.00028493,16]
[327886336,1716580248508,-956.4,0.00028493,16]
[327886337,1716580248518,-500.0,0.00028493,16]
[327886339,1716580248528,-2731.07,0.00028493,16]
[327886341,1716580248537,-500.0,0.00028493,16]
[327886344,1716580248548,-500.0,0.00028493,16]
[327886346,1716580248558,-901.85,0.00028493,16]
[327886347,1716580248567,-2893.21,0.00028493,16]
[327886350,1716580248577,-4856.55,0.00028543,3]
[327886352,1716580248587,-931.05526992,0.00028644,2]
[327886353,1716580248596,-931.05526992,0.00028671,2]
[327886356,1716580248606,-152.65713131,0.00028674,2]
[327886358,1716580248615,-165.09678267,0.0002874,2]
[327886359,1716580248625,-931.05526992,0.00028758,2]
[327886362,1716580248635,-4393.42,0.00028766,19]
[327886364,1716580248644,-456.57692779,0.00028767,2]
[327886365,1716580248654,-500.0,0.00028767,17]
[327886367,1716580248664,-500.0,0.00028767,17]
[327886370,1716580248674,-1358.85,0.00028767,17]
[327886372,1716580248684,-2039.5,0.00028767,17]
[327886374,1716580248694,-238.09,0.00028767,17]
[327886376,1716580248704,-593.03,0.00028767,17]
[327886378,1716580248713,-793.54,0.00028767,17]
[327886380,1716580248723,-164.05,0.00028767,17]
[327886381,1716580248732,-500.0,0.00028767,17]
[327886383,1716580248741,-500.0,0.00028767,17]
[327886386,1716580248751,-956.4,0.00028767,17]
[327886387,1716580248760,-500.0,0.00028767,17]
[327886389,1716580248770,-2731.07,0.00028767,17]
[327886391,1716580248780,-500.0,0.00028767,17]
[327886394,1716580248790,-500.0,0.00028767,17]
[327886395,1716580248803,-901.85,0.00028767,17]
[327886398,1716580248814,-2893.21,0.00028767,17]
[327886400,1716580248824,-172.0,0.00028767,2]
[327886401,1716580248834,-2000.0,0.0002877,2]
[327886404,1716580248846,-165.09678267,0.00028852,2]
[327886406,1716580248856,-209.541,0.00028854,2]
[327886408,1716580248866,-152.71459282,0.0002889,2]
[327886409,1716580248878,-931.05526992,0.00028896,2]
[327886412,1716580248889,-152.71459282,0.00028907,2]
[327886413,1716580248899,-931.05526992,0.00028945,2]
[327886415,1716580248908,-152.71459282,0.00028956,2]
[327886418,1716580248919,-154.99706553,0.00029,2]
[327886420,1716580248928,-165.09678267,0.00029036,2]
[327886422,1716580248937,-500.0,0.00029041,18]
[327886424,1716580248948,-500.0,0.00029041,18]
[327886426,1716580248957,-1358.85,0.00029041,18]
[327886428,1716580248967,-2039.5,0.00029041,18]
[327886430,1716580248977,-593.03,0.00029041,18]
[327886432,1716580248987,-793.54,0.00029041,18]
[327886434,1716580248997,-366.73594837,0.00029041,18]
[327886436,1716580249007,-500.0,0.00029041,18]
[327886438,1716580249016,-956.4,0.00029041,18]
[327886440,1716580249025,-210.34480575,0.00029041,18]
[327886442,1716580249034,-2731.07,0.00029041,18]
[327886444,1716580249045,-528.87812072,0.00029041,18]
[327886446,1716580249055,-500.0,0.00029041,18]
[327886448,1716580249065,-901.85,0.00029041,18]
[327886450,1716580249074,-2893.21,0.00029041,18]
[327886452,1716580249084,-931.05526992,0.00029231,2]
[327886454,1716580249094,-152.71459282,0.00029295,2]
[327886456,1716580249103,-152.71459282,0.00029312,2]
[327886458,1716580249113,-576.09767926,0.00029315,19]
[327886460,1716580249124,-500.0,0.00029315,19]
[327886462,1716580249134,-1358.85,0.00029315,19]
[327886464,1716580249143,-2039.5,0.00029315,19]
[327886466,1716580249153,-593.03,0.00029315,19]
[327886468,1716580249163,-793.54,0.00029315,19]
[327886470,1716580249172,-255.69652864,0.00029315,19]
[327886472,1716580249183,-956.4,0.00029315,19]
[327886474,1716580249192,-2731.07,0.00029315,19]
[327886476,1716580249202,-500.0,0.00029315,19]
[327886478,1716580249212,-901.85,0.00029315,19]
[327886480,1716580249221,-2893.21,0.00029315,19]
[327886482,1716580249230,-931.05526992,0.00029439,2]
[327886484,1716580249240,-931.05526992,0.00029445,2]
[327886486,1716580249249,-931.05526992,0.00029454,2]
[327886488,1716580249258,-931.05526992,0.00029463,2]
[327886490,1716580249269,-4393.42,0.00029588,20]
[327886492,1716580249278,-4856.55,0.00029588,3]
[327886494,1716580249288,-500.0,0.00029589,20]
[327886496,1716580249298,-1358.85,0.00029589,20]
[327886498,1716580249307,-2039.5,0.00029589,20]
[327886500,1716580249316,-593.03,0.00029589,20]
[327886502,1716580249326,-793.54,0.00029589,20]
[327886504,1716580249336,-956.4,0.00029589,20]
[327886506,1716580249345,-2731.07,0.00029589,20]
[327886508,1716580249355,-500.0,0.00029589,20]
[327886510,1716580249365,-901.85,0.00029589,20]
[327886512,1716580249374,-2893.21,0.00029589,20]
[327886514,1716580249383,-150.83408251,0.00029734,2]
[327886516,1716580249393,-250.21564279,0.00029734,2]
[327886518,1716580249402,-291.6248309,0.00029807,2]
[327886520,1716580249411,-291.6248309,0.00029812,2]
[327886522,1716580249420,-583.2496618,0.00029812,2]
[327886524,1716580249430,-291.6248309,0.00029812,2]
[327886526,1716580249439,-291.6248309,0.00029812,2]
[327886528,1716580249450,-291.6248309,0.00029812,2]
[327886530,1716580249459,-291.6248309,0.00029812,2]
[327886532,1716580249468,-291.6248309,0.00029812,2]
[327886534,1716580249478,-291.6248309,0.00029812,2]
[327886536,1716580249487,-291.6248309,0.00029812,2]
[327886538,1716580249497,-291.6248309,0.00029812,2]
[327886540,1716580249506,-500.0,0.00029863,21]
[327886542,1716580249515,-1358.85,0.00029863,21]
[327886544,1716580249525,-2039.5,0.00029863,21]
[327886546,1716580249535,-593.03,0.00029863,21]
[327886548,1716580249546,-793.54,0.00029863,21]
[327886551,1716580249556,-956.4,0.00029863,21]
[327886552,1716580249565,-2731.07,0.00029863,21]
[327886554,1716580249575,-500.0,0.00029863,21]
[327886556,1716580249585,-901.85,0.00029863,21]
[327886559,1716580249594,-2893.21,0.00029863,21]
[327886561,1716580249603,-441.62112123,0.000299,2]
[327886562,1716580249612,-441.62112123,0.000299,2]
[327886564,1716580249622,-441.62112123,0.000299,2]
[327886566,1716580249631,-441.62112123,0.000299,2]
[327886580,1716580249748,-327.78357791,0.000299,2]
[327886583,1716580249759,-327.78357786,0.000299,2]
[327886585,1716580249768,-327.78357786,0.000299,2]
[327886587,1716580249777,-327.78357786,0.000299,2]
[327886589,1716580249787,-327.78357786,0.000299,2]
[327886591,1716580249798,-327.78357786,0.000299,2]
[327886593,1716580249812,-327.78357786,0.000299,2]
[327886594,1716580249821,-327.78357786,0.000299,2]
[327886596,1716580249830,-327.78357786,0.000299,2]
[327886598,1716580249840,-327.78357786,0.000299,2]
[327886601,1716580249851,-4393.42,0.00029999,21]
[327886602,1716580249860,-4393.42,0.00029999,21]
[327886605,1716580249871,-4291.15739246,0.00029999,21]
[327886619,1716580250000,-102.26260754,0.00029999,21]
[327886621,1716580250010,-4393.42,0.00029999,21]
[327886623,1716580250020,-4393.42896683,0.00029999,21]
[327886625,1716580250030,-4856.55,0.00029999,3]
[327886627,1716580250039,-423.28644752,0.0003,2]
[327886652,1716580250256,-211.23900439,0.00019897,2]
[327886653,1716580250266,-500.0,0.00019999,2]
[327886656,1716580250275,-500.0,0.00019999,2]
[327886658,1716580250284,-500.0,0.00019999,2]
[327886660,1716580250294,-213.05043279,0.00019999,2]
[327886662,1716580250306,-185.15545059,0.00019999,2]
[327886664,1716580250315,-500.0,0.00024657,2]
[327886666,1716580250325,-314.99175545,0.00026027,7]
[327886667,1716580250334,-17795.74233849,0.0003,2]
[327886670,1716580250344,-783.85662241,0.0003,4]
[327886672,1716580250354,-17243.67081528,0.0003,10]
[327886674,1716580250363,-154.82968734,0.0003,4]
[327886675,1716580250373,-465.65005523,0.0003,30]
[327886678,1716580250383,-279.08332303,0.0003,2]
[327886679,1716580250392,-214.62413635,0.0003,4]
[327886682,1716580250403,-3000.0,0.0003,4]
[327886684,1716580250413,-7513.15784686,0.0003,2]
[327886686,1716580250423,-776.13829252,0.0003,2]
[327886688,1716580250432,-1500.0,0.0003,2]
[327886690,1716580250442,-289.67,0.0003,2]
[327886692,1716580250452,-6000.0,0.0003,2]
[327886694,1716580250462,-1210.78934384,0.0003,3]
[327886695,1716580250471,-1210.78934384,0.0003,3]
[327886697,1716580250480,-230.0,0.0003,2]
[327886700,1716580250490,-4856.55,0.00030033,3]
[327886702,1716580250499,-597.88153127,0.00030136,22]
[327886703,1716580250509,-1358.85,0.00030136,22]
[327886706,1716580250518,-2039.5,0.00030136,22]
[327886707,1716580250528,-593.03,0.00030136,22]
[327886709,1716580250538,-793.54,0.00030136,22]
[327886711,1716580250551,-956.4,0.00030136,22]
[327886713,1716580250564,-2731.07,0.00030136,22]
[327886715,1716580250575,-500.0,0.00030136,22]
[327886718,1716580250586,-901.85,0.00030136,21]
[327886720,1716580250596,-2893.21,0.00030136,22]
[327886721,1716580250606,-300.0,0.0003015,120]
[327886723,1716580250616,-152.71459282,0.00030187,7]
[327886725,1716580250626,-175.0,0.00030205,2]
[327886728,1716580250635,-301.66816502,0.00030234,4]
[327886729,1716580250645,-931.05526992,0.00030309,7]
[327886732,1716580250655,-447.324682,0.0003031,2]
[327886734,1716580250665,-150.0,0.00030324,4]
[327886735,1716580250675,-1358.85,0.0003041,23]
[327886738,1716580250685,-2039.5,0.0003041,23]
[327886740,1716580250695,-593.03,0.0003041,23]
[327886742,1716580250704,-793.54,0.0003041,23]
[327886744,1716580250714,-956.4,0.0003041,23]
[327886746,1716580250723,-2731.07,0.0003041,23]
[327886748,1716580250732,-619.19887249,0.0003041,23]
[327886750,1716580250741,-901.85,0.0003041,21]
[327886752,1716580250750,-2893.21,0.0003041,23]
[327886754,1716580250760,-152.71459282,0.00030458,7]
[327886756,1716580250769,-152.71459282,0.00030469,7]
[327886758,1716580250778,-1022.45023288,0.0003049,4]
[327886760,1716580250787,-5348.4269577,0.0003049,4]
[327886762,1716580250802,-409.2548008,0.00030497,2]
[327886764,1716580250812,-3158.43849823,0.0003051,120]
[327886766,1716580250821,-931.05526992,0.00030514,7]
[327886768,1716580250830,-152.71459282,0.00030543,7]
[327886770,1716580250840,-291.6248309,0.00030576,2]
[327886771,1716580250850,-291.6248309,0.00030576,2]
[327886774,1716580250859,-291.6248309,0.00030576,2]
[327886776,1716580250868,-291.6248309,0.00030576,2]
[327886777,1716580250878,-291.6248309,0.00030576,2]
[327886780,1716580250889,-152.71459282,0.0003062,7]
[327886782,1716580250902,-500.0,0.00030628,2]
[327886784,1716580250911,-357.00102441,0.00030628,2]
[327886808,1716580251135,-500.0,0.00024657,2]
[327886810,1716580251144,-500.0,0.00024657,2]
[327886812,1716580251153,-211.23900438,0.00024831,2]
[327886814,1716580251162,-500.0,0.00024931,3]
[327886816,1716580251171,-144.14897559,0.00030628,2]
[327886818,1716580251180,-4856.55,0.00030633,3]
[327886820,1716580251190,-291.6248309,0.00030634,2]
[327886822,1716580251198,-154.90186486,0.00030634,2]
[327886824,1716580251210,-136.72296604,0.00030634,2]
[327886826,1716580251219,-291.6248309,0.00030634,2]
[327886828,1716580251228,-291.6248309,0.00030634,2]
[327886830,1716580251237,-291.6248309,0.00030634,2]
[327886832,1716580251246,-291.6248309,0.00030634,2]
[327886834,1716580251256,-291.6248309,0.00030634,2]
[327886836,1716580251266,-291.6248309,0.00030634,2]
[327886838,1716580251275,-291.6248309,0.00030634,2]
[327886840,1716580251283,-291.6248309,0.00030634,2]
[327886842,1716580251293,-291.6248309,0.00030634,2]
[327886844,1716580251305,-291.6248309,0.00030634,2]
[327886846,1716580251314,-291.6248309,0.00030634,2]
[327886848,1716580251323,-291.6248309,0.00030634,2]
[327886850,1716580251332,-1358.85,0.00030684,24]
[327886852,1716580251341,-2039.5,0.00030684,24]
[327886854,1716580251349,-593.03,0.00030684,24]
[327886856,1716580251359,-793.54,0.00030684,24]
[327886857,1716580251368,-956.4,0.00030684,24]
[327886859,1716580251377,-2731.07,0.00030684,24]
[327886861,1716580251386,-901.85,0.00030684,21]
[327886863,1716580251396,-2893.21,0.00030684,24]
[327886865,1716580251405,-603.33633004,0.00030742,7]
[327886867,1716580251415,-500.0,0.00030769,2]
[327886869,1716580251424,-697.76063381,0.00030958,25]
[327889453,1716580423842,522.22765643,0.00019998,60]
[327889454,1716580438936,343.24767538,0.00019193,60]
[327889455,1716580667044,150.81901718,0.00026582,120]
[327889456,1716580791723,685.11026498,9.999e-05,2]
[327889457,1716580810641,1351.48664572,9.999e-05,2]
[327889458,1716580814507,302.52048176,9.999e-05,2]
[327889459,1716580841935,154.82968734,9.999e-05,2]
[327889460,1716580845037,285.2556899,9.999e-05,2]
[327889461,1716580850017,238.95770252,9.999e-05,2]
[327889462,1716580852449,154.82968734,9.999e-05,2]
[327889463,1716580856430,1043.9787751,9.999e-05,2]
[327889464,1716580861695,156.57389491,9.999e-05,2]
[327889465,1716580870668,3536.04294003,9.999e-05,2]
[327889466,1716580873111,1381.684875,9.999e-05,2]
[327889467,1716580889148,283.81918026,0.000137,2]
[327889468,1716581038368,1894.87961524,9.999e-05,2]
[327889469,1716581044440,48222.71384,0.0001456,2]
[327889470,1716581072014,150.81901718,0.00026152,30]
[327889471,1716581157262,-549.94535997,0.0001519,2]
[327889472,1716581226102,-1336.67557576,0.00015092,2]
[327889473,1716581290149,154.82968734,9.999e-05,2]
[327889474,1716581302535,156.57389491,9.999e-05,2]
[327889475,1716581344627,24900.0,0.00014087,2]
[327889476,1716581346098,-2680.78177916,0.00015083,2]
[327889477,1716581346119,-156.57389491,0.00015084,2]
[327889478,1716581346141,-1869.77973806,0.00015084,2]
[327889479,1716581346162,-7899.73937105,0.00015085,2]
[327889480,1716581346187,-45987.24871335,0.00015085,2]
[327889481,1716581352141,-13451.45423397,0.00015085,2]
[327889482,1716581352160,-155.0341075,0.00015085,2]
[327889483,1716581352181,-234.57772288,0.00015086,2]
[327889484,1716581352202,-27715.90568884,0.00015086,2]
[327889485,1716581352232,-14281.91967362,0.00015086,2]
[327889486,1716581352252,-9405.35671463,0.00015087,2]
[327889487,1716581352275,-702.29749261,0.00015089,2]
[327889488,1716581352295,-154.82968734,0.00015092,2]
[327889489,1716581352314,-1157.79955329,0.00015093,2]
[327889490,1716581352333,-11060.38935535,0.00015191,2]
[327889491,1716581352354,-307.84229627,0.00015192,2]
[327889492,1716581352372,-216.9570412,0.00015199,2]
[327889493,1716581352392,-2393.40604751,0.00015486,2]
[327889494,1716581352411,-1244.07616978,0.00015583,2]
[327889495,1716581352431,-16219.9802764,0.00015587,2]
[327889496,1716581352449,-306.8638936,0.00016007,2]
[327889497,1716581352469,-2393.40604749,0.00016384,2]
[327889498,1716581352490,-2803.79718888,0.00016878,2]
[327889499,1716581352510,-283.94406509,0.00016879,2]
[327889500,1716581352532,-3000.0,0.00016887,2]
[327889501,1716581352552,-2393.40604749,0.00017282,2]
[327889502,1716581352572,-1157.79955325,0.00017712,2]
[327889503,1716581352591,-287.44396843,0.0001788,2]
[327889504,1716581352610,-178.136779,0.0001788,2]
[327889505,1716581352630,-1684.91556334,0.0001788,2]
[327889506,1716581352651,-185.00764267,0.00017881,2]
[327889507,1716581352670,-291.92956128,0.00017881,2]
[327889508,1716581352690,-302.15168363,0.00017882,2]
[327889509,1716581352711,-154.82968734,0.00017884,2]
[327889510,1716581352730,-1650.8738113,0.00017884,2]
[327889511,1716581352749,-710.23871504,0.00017884,2]
[327889512,1716581352769,-200.0,0.00017884,2]
[327889513,1716581352789,-52953.75941319,0.00017884,2]
[327889514,1716581352809,-1350.28647394,0.00017884,2]
[327889515,1716581352828,-395.41357359,0.00017886,2]
[327889516,1716581352851,-1496.84971124,0.00017886,2]
[327889517,1716581352871,-913.44233244,0.00017886,2]
[327889518,1716581353042,-155.11161489,0.00017886,2]
[327889519,1716581353066,-1339.32951835,0.00017886,2]
[327889520,1716581353086,-692.28215507,0.00017886,2]
[327889521,1716581353106,-190.02760697,0.00017886,2]
[327889522,1716581353126,-194.5093511,0.00017886,2]
[327889523,1716581353145,-410.5949292,0.00017886,2]
[327889524,1716581353165,-2401.9138634,0.00017886,2]
[327889525,1716581353190,-215.01334203,0.00017886,2]
[327889526,1716581353211,-163.26354455,0.00017886,2]
[327889527,1716581353231,-155.2372067,0.00017886,2]
[327889528,1716581353251,-430.26016679,0.00017887,2]
[327889529,1716581353275,-2393.40604749,0.0001818,2]
[327889530,1716581353302,-373.46390554,0.00018635,2]
[327889531,1716581353322,-155.0341075,0.00018635,2]
[327889532,1716581353342,-522.78148972,0.00018636,2]
[327889533,1716581353363,-835.74260727,0.00018636,2]
[327889534,1716581358789,383.30048254,0.00018817,2]
[327889535,1716581358943,604.98780484,0.00018817,2]
[327889536,1716581367579,155.04636224,0.00015,2]
[327889537,1716581381281,254.7051673,0.00018152,2]
[327889538,1716581383894,154.82968734,0.00015,2]
[327889539,1716581393014,154.82968734,0.00015,2]
[327889540,1716581427723,549.2240748,0.00018297,2]
[327889541,1716581427834,1869.77973806,0.00018817,2]
[327889587,1716581432315,-2656.379159,0.00018818,2]
[327889589,1716581432326,-271.4398124,0.000189,2]
[327889591,1716581432338,-285.02491941,0.000189,2]
[327889593,1716581432348,-513.99975224,0.00019078,2]
[327889595,1716581432357,-155.63413977,0.00019175,2]
[327889597,1716581432366,-155.40913549,0.00019175,2]
[327889599,1716581432375,-156.31459691,0.00019176,2]
[327889601,1716581432384,-2002.28033041,0.00019176,2]
[327889602,1716581432394,-41997.82536246,0.00019177,2]
[327889604,1716581432403,-35566.69149567,0.00019177,2]
[327889606,1716581432412,-500.0,0.00019178,2]
[327889608,1716581432422,-500.0,0.00019178,2]
[327889611,1716581432431,-478.65269719,0.00019178,2]
[327889613,1716581432440,-500.0,0.00019178,2]
[327889614,1716581432450,-1854.20432286,0.00019178,2]
[327889616,1716581432459,-484.40324759,0.00019178,2]
[327889618,1716581432468,-153.20347054,0.00019178,2]
[327889620,1716581432477,-1854.20432286,0.00019178,2]
[327889622,1716581432486,-500.0,0.00019178,2]
[327889624,1716581432495,-305.59304263,0.00019178,2]
[327889626,1716581432504,-500.0,0.00019178,2]
[327889628,1716581432513,-500.0,0.00019178,2]
[327889630,1716581432525,-1854.20432286,0.00019178,2]
[327889632,1716581432534,-500.0,0.00019178,2]
[327889634,1716581432543,-1854.20432286,0.00019178,2]
[327889636,1716581432552,-500.0,0.00019178,2]
[327889638,1716581432561,-500.0,0.00019178,2]
[327889640,1716581432570,-1854.20432286,0.00019178,2]
[327889642,1716581432580,-500.0,0.00019178,2]
[327889644,1716581432589,-500.0,0.00019178,2]
[327889646,1716581432598,-1854.20432286,0.00019178,2]
[327889648,1716581432607,-500.0,0.00019178,2]
[327889650,1716581432616,-1854.20432286,0.00019178,2]
[327889651,1716581432625,-500.0,0.00019178,2]
[327889653,1716581432635,-586.79971692,0.00019178,2]
[327889655,1716581432645,-1854.20432286,0.00019178,2]
[327889657,1716581432654,-500.0,0.00019178,2]
[327889659,1716581432663,-1854.20432286,0.00019178,2]
[327889661,1716581432673,-1854.20432286,0.00019178,2]
[327889663,1716581432683,-1854.20432286,0.00019178,2]
[327889665,1716581432692,-1854.20432286,0.00019178,2]
[327889667,1716581432702,-1854.20432286,0.00019178,2]
[327889669,1716581432711,-1854.20432286,0.00019178,2]
[327889671,1716581432720,-1854.20432286,0.00019178,2]
[327889673,1716581432729,-1854.20432286,0.00019178,2]
[327889675,1716581432738,-1854.20432286,0.00019178,2]
[327889677,1716581432747,-1854.20432286,0.00019178,2]
[327889679,1716581432756,-1854.20432286,0.00019178,2]
[327889681,1716581432766,-1854.20432286,0.00019178,2]
[327889683,1716581432777,-1854.20432286,0.00019178,2]
[327889685,1716581432786,-643.18062416,0.00019178,2]
[327889687,1716581432796,-1854.20432286,0.00019178,2]
[327889689,1716581432805,-1854.20432286,0.00019178,2]
[327889692,1716581432815,-1854.20432286,0.00019178,2]
[327889694,1716581432825,-1854.20432286,0.00019178,2]
[327889695,1716581432834,-1854.20432286,0.00019178,2]
[327889697,1716581432843,-1854.20432286,0.00019178,2]